[Event "Live Chess"]
[Site "Chess.com"]
[Date "2024.06.01"]
[Round "-"]
[White "mrsmarple1968"]
[Black "Ferrarifan27"]
[Result "0-1"]
[WhiteElo "1788"]
[BlackElo "2075"]
[TimeControl "300"]
[EndTime "9:44:39 PDT"]
[Termination "Ferrarifan27 won by resignation"]

1. e4 {[%clk 0:04:55.7]} 1... e5 {[%clk 0:04:57.7]} 2. Bc4 {[%clk 0:04:52.6]}
2... Nc6 {[%clk 0:04:56.1]} 3. Nf3 {[%clk 0:04:49.6]} 3... Bc5 {[%clk
0:04:53.1]} 4. O-O {[%clk 0:04:46.9]} 4... d6 {[%clk 0:04:51.5]} 5. Re1 {[%clk
0:04:45.1]} 5... Nf6 {[%clk 0:04:49.8]} 6. d3 {[%clk 0:04:43.4]} 6... Bg4 {[%clk
0:04:45.8]} 7. c3 {[%clk 0:04:41.4]} 7... O-O {[%clk 0:04:43]} 8. h3 {[%clk
0:04:39.4]} 8... Bh5 {[%clk 0:04:41.8]} 9. Nbd2 {[%clk 0:04:35]} 9... a6 {[%clk
0:04:40.8]} 10. Bb3 {[%clk 0:04:32.1]} 10... Re8 {[%clk 0:04:37.5]} 11. Nf1
{[%clk 0:04:24.5]} 11... d5 {[%clk 0:04:34.8]} 12. exd5 {[%clk 0:04:16.4]} 12...
Nxd5 {[%clk 0:04:32.9]} 13. Ng3 {[%clk 0:04:13.9]} 13... Bg6 {[%clk 0:04:30.9]}
14. d4 {[%clk 0:04:02.7]} 14... exd4 {[%clk 0:04:29.4]} 15. Rxe8+ {[%clk
0:03:59.8]} 15... Qxe8 {[%clk 0:04:26.9]} 16. Bxd5 {[%clk 0:03:56.8]} 16... dxc3
{[%clk 0:04:24.4]} 17. bxc3 {[%clk 0:03:55.1]} 17... Rd8 {[%clk 0:04:21.2]} 18.
c4 {[%clk 0:03:52.1]} 18... Ne5 {[%clk 0:04:12.8]} 19. Qb3 {[%clk 0:03:40.5]}
19... Nxf3+ {[%clk 0:04:09.9]} 20. Qxf3 {[%clk 0:03:31.9]} 20... Bd4 {[%clk
0:03:53.9]} 21. Rb1 {[%clk 0:03:22.4]} 21... Bxb1 {[%clk 0:03:51.2]} 0-1

[Event "Live Chess"]
[Site "Chess.com"]
[Date "2024.06.01"]
[Round "-"]
[White "KeithArkell"]
[Black "degringolade64"]
[Result "1-0"]
[WhiteElo "2515"]
[BlackElo "2063"]
[TimeControl "300"]
[EndTime "9:44:40 PDT"]
[Termination "KeithArkell won by resignation"]

1. d4 {[%clk 0:04:56.8]} 1... Nf6 {[%clk 0:04:56.4]} 2. Nf3 {[%clk 0:04:55.9]}
2... d5 {[%clk 0:04:54.8]} 3. c4 {[%clk 0:04:55]} 3... e6 {[%clk 0:04:53.1]} 4.
cxd5 {[%clk 0:04:54.5]} 4... exd5 {[%clk 0:04:51.7]} 5. Nc3 {[%clk 0:04:54.3]}
5... c6 {[%clk 0:04:48.8]} 6. Qc2 {[%clk 0:04:53.7]} 6... g6 {[%clk 0:04:46.7]}
7. Bg5 {[%clk 0:04:52.5]} 7... Be7 {[%clk 0:04:44.3]} 8. e3 {[%clk 0:04:51]}
8... Bf5 {[%clk 0:04:42.2]} 9. Bd3 {[%clk 0:04:49.9]} 9... Bxd3 {[%clk
0:04:41.3]} 10. Qxd3 {[%clk 0:04:49.2]} 10... Nbd7 {[%clk 0:04:39.3]} 11. Bh6
{[%clk 0:04:48.1]} 11... Ng4 {[%clk 0:04:35.7]} 12. Bf4 {[%clk 0:04:46.8]} 12...
O-O {[%clk 0:04:30.2]} 13. O-O {[%clk 0:04:45.8]} 13... Kg7 {[%clk 0:04:22.2]}
14. h3 {[%clk 0:04:44.2]} 14... Ngf6 {[%clk 0:04:20.9]} 15. Rab1 {[%clk
0:04:43.3]} 15... a5 {[%clk 0:04:17.5]} 16. Ne5 {[%clk 0:04:41.7]} 16... Nh5
{[%clk 0:03:45.1]} 17. Bh2 {[%clk 0:04:38.4]} 17... Kg8 {[%clk 0:03:00.9]} 18.
Nxd7 {[%clk 0:04:35]} 18... Qxd7 {[%clk 0:02:59.6]} 19. Rfc1 {[%clk 0:04:32.4]}
19... Nf6 {[%clk 0:02:42.7]} 20. Be5 {[%clk 0:04:23.4]} 20... Ne8 {[%clk
0:02:40.5]} 21. Na4 {[%clk 0:04:21.2]} 21... Ra6 {[%clk 0:02:25.6]} 22. Nc5
{[%clk 0:04:14.3]} 22... Bxc5 {[%clk 0:02:22.9]} 23. Rxc5 {[%clk 0:04:12.2]}
23... Nd6 {[%clk 0:02:17]} 24. Bxd6 {[%clk 0:04:11.2]} 24... Qxd6 {[%clk
0:02:15.5]} 25. b3 {[%clk 0:04:04.6]} 25... b5 {[%clk 0:02:08.9]} 26. Rbc1
{[%clk 0:04:02.8]} 26... Rb8 {[%clk 0:02:01.3]} 27. a4 {[%clk 0:03:53.9]} 27...
bxa4 {[%clk 0:01:58.2]} 28. Qxa6 {[%clk 0:03:50.7]} 28... axb3 {[%clk
0:01:56.1]} 29. Qxa5 {[%clk 0:03:47.9]} 29... b2 {[%clk 0:01:54.9]} 30. Rb1
{[%clk 0:03:47]} 30... Qf6 {[%clk 0:01:49.8]} 31. Qc3 {[%clk 0:03:42.8]} 1-0

[Event "Live Chess"]
[Site "Chess.com"]
[Date "2024.06.01"]
[Round "-"]
[White "gunslinger222"]
[Black "TedUdale"]
[Result "1/2-1/2"]
[WhiteElo "2280"]
[BlackElo "2157"]
[TimeControl "300"]
[EndTime "9:44:44 PDT"]
[Termination "Game drawn by repetition"]

1. d4 {[%clk 0:04:58.1]} 1... d6 {[%clk 0:04:59.2]} 2. c4 {[%clk 0:04:57.6]}
2... g6 {[%clk 0:04:58.3]} 3. g3 {[%clk 0:04:55.7]} 3... Bg7 {[%clk 0:04:57.8]}
4. Bg2 {[%clk 0:04:55]} 4... Nd7 {[%clk 0:04:55.5]} 5. Nc3 {[%clk 0:04:54.1]}
5... c6 {[%clk 0:04:54.6]} 6. Nf3 {[%clk 0:04:50.7]} 6... e5 {[%clk 0:04:53.2]}
7. d5 {[%clk 0:04:45.9]} 7... c5 {[%clk 0:04:50.9]} 8. e4 {[%clk 0:04:43.1]}
8... Ne7 {[%clk 0:04:49.3]} 9. Nd2 {[%clk 0:04:42.4]} 9... O-O {[%clk
0:04:48.6]} 10. Nf1 {[%clk 0:04:41.8]} 10... f5 {[%clk 0:04:47.2]} 11. exf5
{[%clk 0:04:34.4]} 11... Nxf5 {[%clk 0:04:46.3]} 12. Ne3 {[%clk 0:04:21.3]}
12... Nd4 {[%clk 0:04:43.5]} 13. O-O {[%clk 0:04:20.1]} 13... Nf6 {[%clk
0:04:39.5]} 14. f4 {[%clk 0:04:14.3]} 14... Nh5 {[%clk 0:04:27]} 15. fxe5 {[%clk
0:04:04.2]} 15... Rxf1+ {[%clk 0:04:25.9]} 16. Qxf1 {[%clk 0:04:00.4]} 16...
Bxe5 {[%clk 0:04:24.7]} 17. Rb1 {[%clk 0:03:40.8]} 17... Qe7 {[%clk 0:04:07.2]}
18. b4 {[%clk 0:03:30.2]} 18... b6 {[%clk 0:04:02.2]} 19. bxc5 {[%clk
0:03:28.1]} 19... bxc5 {[%clk 0:04:02.1]} 20. Ne4 {[%clk 0:03:17.9]} 20... Bd7
{[%clk 0:03:46.9]} 21. Rb7 {[%clk 0:03:07.4]} 21... Rf8 {[%clk 0:03:43.3]} 22.
Qd1 {[%clk 0:03:06.2]} 22... Qd8 {[%clk 0:03:15.9]} 23. Ng4 {[%clk 0:02:55]}
23... Qc8 {[%clk 0:03:07]} 24. Nh6+ {[%clk 0:02:42.1]} 24... Kh8 {[%clk
0:03:04.6]} 25. Rxa7 {[%clk 0:02:37.3]} 25... Nf5 {[%clk 0:02:47.5]} 26. Nxf5
{[%clk 0:02:24.4]} 26... Bxf5 {[%clk 0:02:40.8]} 27. Ng5 {[%clk 0:02:24]} 27...
Bd4+ {[%clk 0:02:38.3]} 28. Kh1 {[%clk 0:02:22.9]} 28... Bg4 {[%clk 0:02:29]}
29. Qd3 {[%clk 0:02:10.1]} 29... Qe8 {[%clk 0:02:15.5]} 30. Bd2 {[%clk
0:01:59.2]} 30... Ng7 {[%clk 0:01:59.1]} 31. h3 {[%clk 0:01:39.2]} 31... Bf5
{[%clk 0:01:54.9]} 32. Qf3 {[%clk 0:01:38.8]} 32... Nh5 {[%clk 0:01:22]} 33.
Rxh7+ {[%clk 0:01:35.5]} 33... Kg8 {[%clk 0:01:20.1]} 34. Ra7 {[%clk 0:01:29.4]}
34... Qe5 {[%clk 0:01:10.5]} 35. Bf4 {[%clk 0:01:21.4]} 35... Qe1+ {[%clk
0:01:08.7]} 36. Qf1 {[%clk 0:01:20]} 36... Qxf1+ {[%clk 0:00:55.1]} 37. Bxf1
{[%clk 0:01:17.9]} 37... Nxf4 {[%clk 0:00:54.6]} 38. gxf4 {[%clk 0:01:17]} 38...
Re8 {[%clk 0:00:48.8]} 39. Kg2 {[%clk 0:01:10.8]} 39... Re1 {[%clk 0:00:40.6]}
40. a4 {[%clk 0:01:07.1]} 40... Ra1 {[%clk 0:00:34.2]} 41. Ra8+ {[%clk
0:01:03.1]} 41... Kg7 {[%clk 0:00:32.9]} 42. Ra7+ {[%clk 0:01:02.5]} 42... Kg8
{[%clk 0:00:32.3]} 43. Ra8+ {[%clk 0:01:00.8]} 43... Kg7 {[%clk 0:00:31.5]} 44.
Ra7+ {[%clk 0:01:00.1]} 44... Kg8 {[%clk 0:00:31]} 1/2-1/2

[Event "Live Chess"]
[Site "Chess.com"]
[Date "2024.06.01"]
[Round "-"]
[White "CarmelJane"]
[Black "LaupMiths"]
[Result "1-0"]
[WhiteElo "2121"]
[BlackElo "1877"]
[TimeControl "300"]
[EndTime "9:45:06 PDT"]
[Termination "CarmelJane won by resignation"]

1. e4 {[%clk 0:04:57.4]} 1... d6 {[%clk 0:04:58.4]} 2. d4 {[%clk 0:04:55.3]}
2... g6 {[%clk 0:04:57.6]} 3. Nc3 {[%clk 0:04:54.8]} 3... Bg7 {[%clk 0:04:56.8]}
4. Bf4 {[%clk 0:04:53.5]} 4... Nd7 {[%clk 0:04:56.1]} 5. Qd2 {[%clk 0:04:50.4]}
5... a6 {[%clk 0:04:53.5]} 6. O-O-O {[%clk 0:04:49.3]} 6... b5 {[%clk
0:04:52.4]} 7. h4 {[%clk 0:04:44.3]} 7... h5 {[%clk 0:04:49.4]} 8. Nh3 {[%clk
0:04:41.7]} 8... c5 {[%clk 0:04:40.6]} 9. Ne2 {[%clk 0:04:34.3]} 9... cxd4
{[%clk 0:04:30.3]} 10. Nxd4 {[%clk 0:04:29.6]} 10... Bb7 {[%clk 0:04:29.2]} 11.
f3 {[%clk 0:04:18.2]} 11... Rc8 {[%clk 0:04:26.7]} 12. Bg5 {[%clk 0:04:11.9]}
12... Bh6 {[%clk 0:04:23.6]} 13. Bxh6 {[%clk 0:04:10.2]} 13... Nxh6 {[%clk
0:04:18.1]} 14. Ng5 {[%clk 0:04:07.2]} 14... Ne5 {[%clk 0:03:57.4]} 15. Kb1
{[%clk 0:04:03.7]} 15... Nc4 {[%clk 0:03:53.4]} 16. Bxc4 {[%clk 0:04:00.5]}
16... bxc4 {[%clk 0:03:53.3]} 17. Rhe1 {[%clk 0:03:26.5]} 17... Rc5 {[%clk
0:03:40.7]} 18. Qc3 {[%clk 0:03:24.5]} 18... O-O {[%clk 0:03:37.6]} 19. Nde6
{[%clk 0:03:13.8]} 19... fxe6 {[%clk 0:03:33.5]} 20. Nxe6 {[%clk 0:03:12.7]} 1-0

[Event "Live Chess"]
[Site "Chess.com"]
[Date "2024.06.01"]
[Round "-"]
[White "Keithdfg"]
[Black "Berdgross"]
[Result "1-0"]
[WhiteElo "1731"]
[BlackElo "579"]
[TimeControl "300"]
[EndTime "9:45:14 PDT"]
[Termination "Keithdfg won by resignation"]

1. Nf3 {[%clk 0:04:58.1]} 1... e5 {[%clk 0:04:57.9]} 2. d3 {[%clk 0:04:57]} 2...
d6 {[%clk 0:04:57.4]} 3. Nbd2 {[%clk 0:04:55.9]} 3... Bg4 {[%clk 0:04:56.7]} 4.
e4 {[%clk 0:04:54.4]} 4... Nc6 {[%clk 0:04:53.9]} 5. Be2 {[%clk 0:04:53.5]} 5...
Bxf3 {[%clk 0:04:52.2]} 6. Nxf3 {[%clk 0:04:51.2]} 6... Nf6 {[%clk 0:04:49.3]}
7. c3 {[%clk 0:04:50.3]} 7... h6 {[%clk 0:04:48.1]} 8. O-O {[%clk 0:04:50.1]}
8... a6 {[%clk 0:04:46.6]} 9. b4 {[%clk 0:04:49.4]} 9... b5 {[%clk 0:04:44.2]}
10. a3 {[%clk 0:04:48.7]} 10... a5 {[%clk 0:04:42.2]} 11. Bb2 {[%clk 0:04:48.2]}
11... axb4 {[%clk 0:04:40.2]} 12. cxb4 {[%clk 0:04:47.7]} 12... d5 {[%clk
0:04:31.7]} 13. Rc1 {[%clk 0:04:45.8]} 13... dxe4 {[%clk 0:04:29.5]} 14. dxe4
{[%clk 0:04:44.1]} 14... Qxd1 {[%clk 0:04:27.9]} 15. Rfxd1 {[%clk 0:04:41.6]}
15... Rd8 {[%clk 0:04:21]} 16. Bxb5 {[%clk 0:04:39.6]} 16... Rxd1+ {[%clk
0:04:18.3]} 17. Rxd1 {[%clk 0:04:38.6]} 17... Nxe4 {[%clk 0:04:05.7]} 18. Bxc6+
{[%clk 0:04:37.1]} 18... Ke7 {[%clk 0:04:02.6]} 19. Bxe4 {[%clk 0:04:34.3]} 1-0

[Event "Live Chess"]
[Site "Chess.com"]
[Date "2024.06.01"]
[Round "-"]
[White "Brooms1989"]
[Black "Yarigo"]
[Result "0-1"]
[WhiteElo "1051"]
[BlackElo "2410"]
[TimeControl "300"]
[EndTime "9:45:19 PDT"]
[Termination "Yarigo won by resignation"]

1. e4 {[%clk 0:04:52.9]} 1... c6 {[%clk 0:04:58.2]} 2. Nf3 {[%clk 0:04:50.5]}
2... d5 {[%clk 0:04:56.7]} 3. exd5 {[%clk 0:04:50.1]} 3... cxd5 {[%clk
0:04:55.8]} 4. Ne5 {[%clk 0:04:49.6]} 4... Nc6 {[%clk 0:04:48.2]} 5. d4 {[%clk
0:04:47.6]} 5... Nxe5 {[%clk 0:04:46.1]} 6. dxe5 {[%clk 0:04:45.9]} 6... a6
{[%clk 0:04:45.2]} 7. Bd3 {[%clk 0:04:37.8]} 7... e6 {[%clk 0:04:42.9]} 8. O-O
{[%clk 0:04:35.4]} 8... Bc5 {[%clk 0:04:40]} 9. Qg4 {[%clk 0:04:27.3]} 9... Kf8
{[%clk 0:04:36.4]} 10. Nd2 {[%clk 0:03:56.1]} 10... Ne7 {[%clk 0:04:33.6]} 11.
Nf3 {[%clk 0:03:46.3]} 11... Nf5 {[%clk 0:04:19.7]} 12. c3 {[%clk 0:03:29.3]}
12... Bd7 {[%clk 0:04:12.9]} 13. Bg5 {[%clk 0:03:14]} 13... Qc7 {[%clk
0:04:00.7]} 14. Bxf5 {[%clk 0:02:48]} 14... exf5 {[%clk 0:03:57.6]} 15. Qh4
{[%clk 0:02:47.5]} 15... h6 {[%clk 0:03:48.4]} 16. Be7+ {[%clk 0:02:44]} 16...
Bxe7 {[%clk 0:03:45.2]} 17. Qg3 {[%clk 0:02:27.4]} 17... Be6 {[%clk 0:03:34.3]}
18. Nd4 {[%clk 0:02:23.6]} 18... Qd7 {[%clk 0:03:16]} 19. f4 {[%clk 0:01:44]}
19... g6 {[%clk 0:03:13]} 20. Rfd1 {[%clk 0:01:33.5]} 20... Bc5 {[%clk
0:03:08.1]} 21. Qf3 {[%clk 0:01:29]} 21... Kg7 {[%clk 0:03:05.7]} 22. Kh1 {[%clk
0:01:18.1]} 22... Rac8 {[%clk 0:03:00.5]} 23. h4 {[%clk 0:01:14.8]} 23... Bxd4
{[%clk 0:02:52.8]} 24. cxd4 {[%clk 0:01:11.6]} 24... Rc4 {[%clk 0:02:51]} 25. h5
{[%clk 0:01:02.2]} 25... g5 {[%clk 0:02:40.3]} 26. fxg5 {[%clk 0:00:53.5]} 26...
hxg5 {[%clk 0:02:38.5]} 27. Qg3 {[%clk 0:00:47.9]} 27... Rxh5+ {[%clk
0:02:34.6]} 0-1

[Event "Live Chess"]
[Site "Chess.com"]
[Date "2024.06.01"]
[Round "-"]
[White "NAZRIZ1977"]
[Black "Bazzza132"]
[Result "1-0"]
[WhiteElo "2116"]
[BlackElo "1698"]
[TimeControl "300"]
[EndTime "9:45:39 PDT"]
[Termination "NAZRIZ1977 won by checkmate"]

1. c4 {[%clk 0:04:56.4]} 1... Nf6 {[%clk 0:04:58.7]} 2. g3 {[%clk 0:04:55.2]}
2... e6 {[%clk 0:04:57]} 3. Bg2 {[%clk 0:04:54.3]} 3... d5 {[%clk 0:04:56.2]} 4.
Nf3 {[%clk 0:04:53.4]} 4... Bd6 {[%clk 0:04:54.4]} 5. O-O {[%clk 0:04:52.3]}
5... O-O {[%clk 0:04:52.4]} 6. b3 {[%clk 0:04:51.4]} 6... Nbd7 {[%clk
0:04:48.1]} 7. Bb2 {[%clk 0:04:50.4]} 7... Re8 {[%clk 0:04:42.6]} 8. Nc3 {[%clk
0:04:46]} 8... Ne5 {[%clk 0:04:38.2]} 9. cxd5 {[%clk 0:04:38.1]} 9... exd5
{[%clk 0:04:28.3]} 10. d3 {[%clk 0:04:36.9]} 10... Bg4 {[%clk 0:04:21.7]} 11.
Nxe5 {[%clk 0:04:32.9]} 11... Bxe5 {[%clk 0:04:17.4]} 12. Re1 {[%clk 0:04:26.2]}
12... c6 {[%clk 0:04:10.2]} 13. d4 {[%clk 0:04:18.8]} 13... Bd6 {[%clk
0:04:05.7]} 14. f3 {[%clk 0:04:18.1]} 14... Bd7 {[%clk 0:03:59.8]} 15. e4 {[%clk
0:04:12.5]} 15... dxe4 {[%clk 0:03:55.6]} 16. fxe4 {[%clk 0:04:11.7]} 16... Bb4
{[%clk 0:03:54.4]} 17. a3 {[%clk 0:04:07.7]} 17... Bxc3 {[%clk 0:03:47.6]} 18.
Bxc3 {[%clk 0:04:06.8]} 18... Qb6 {[%clk 0:03:44.8]} 19. h3 {[%clk 0:03:57.7]}
19... c5 {[%clk 0:03:42.1]} 20. dxc5 {[%clk 0:03:53.3]} 20... Qxc5+ {[%clk
0:03:35.6]} 21. Bd4 {[%clk 0:03:52.4]} 21... Qc7 {[%clk 0:03:29.2]} 22. Rc1
{[%clk 0:03:47.2]} 22... Qd8 {[%clk 0:03:22.3]} 23. e5 {[%clk 0:03:43.1]} 23...
Nh5 {[%clk 0:03:16]} 24. Qxh5 {[%clk 0:03:41.2]} 24... g6 {[%clk 0:03:12.4]} 25.
Qh6 {[%clk 0:03:36]} 25... Bf5 {[%clk 0:03:10.4]} 26. Rcd1 {[%clk 0:03:31.7]}
26... Qa5 {[%clk 0:03:08.3]} 27. e6 {[%clk 0:03:30.1]} 27... f6 {[%clk
0:02:59.3]} 28. Bxf6 {[%clk 0:03:28.9]} 28... Qc7 {[%clk 0:02:52.4]} 29. Rd7
{[%clk 0:03:21.6]} 29... Qb6+ {[%clk 0:02:42.3]} 30. Bd4 {[%clk 0:03:20.1]}
30... Qxd4+ {[%clk 0:02:39.6]} 31. Rxd4 {[%clk 0:03:18.9]} 31... Bxe6 {[%clk
0:02:36.9]} 32. Rxe6 {[%clk 0:03:16.2]} 32... Rxe6 {[%clk 0:02:35.3]} 33. Rd7
{[%clk 0:03:15.1]} 33... Re7 {[%clk 0:02:34.2]} 34. Rxe7 {[%clk 0:03:13.9]}
34... Rb8 {[%clk 0:02:32.1]} 35. Qg7# {[%clk 0:03:13]} 1-0

[Event "Live Chess"]
[Site "Chess.com"]
[Date "2024.06.01"]
[Round "-"]
[White "bill77678"]
[Black "Trecregin"]
[Result "1/2-1/2"]
[WhiteElo "1800"]
[BlackElo "1830"]
[TimeControl "300"]
[EndTime "9:45:40 PDT"]
[Termination "Game drawn by agreement"]

1. e4 {[%clk 0:04:58.2]} 1... Nf6 {[%clk 0:04:58.4]} 2. e5 {[%clk 0:04:56.9]}
2... Ng8 {[%clk 0:04:56.7]} 3. d4 {[%clk 0:04:55.9]} 3... d6 {[%clk 0:04:55.7]}
4. exd6 {[%clk 0:04:49]} 4... exd6 {[%clk 0:04:54.6]} 5. Bd3 {[%clk 0:04:47.6]}
5... d5 {[%clk 0:04:53.1]} 6. Ne2 {[%clk 0:04:46.5]} 6... Nf6 {[%clk 0:04:52.1]}
7. O-O {[%clk 0:04:45.6]} 7... Bd6 {[%clk 0:04:51.4]} 8. Bf4 {[%clk 0:04:43.4]}
8... O-O {[%clk 0:04:49.8]} 9. Bxd6 {[%clk 0:04:41.8]} 9... Qxd6 {[%clk
0:04:49.1]} 10. c3 {[%clk 0:04:41.2]} 10... c5 {[%clk 0:04:47.2]} 11. dxc5
{[%clk 0:04:35.6]} 11... Qxc5 {[%clk 0:04:45.8]} 12. Nd2 {[%clk 0:04:34.7]}
12... Nc6 {[%clk 0:04:44.2]} 13. Re1 {[%clk 0:04:32]} 13... Bg4 {[%clk
0:04:41.2]} 14. Rc1 {[%clk 0:04:24.4]} 14... Rae8 {[%clk 0:04:38.8]} 15. Nb3
{[%clk 0:04:13.4]} 15... Qd6 {[%clk 0:04:25.4]} 16. f3 {[%clk 0:04:10.2]} 16...
Bh5 {[%clk 0:03:55.6]} 17. Ng3 {[%clk 0:04:08]} 17... Bg6 {[%clk 0:03:53.9]} 18.
Bxg6 {[%clk 0:04:07]} 18... fxg6 {[%clk 0:03:52.2]} 19. Nd4 {[%clk 0:04:02.6]}
19... Qc5 {[%clk 0:03:46.8]} 20. Qd3 {[%clk 0:03:56.5]} 20... Nxd4 {[%clk
0:03:37.2]} 21. cxd4 {[%clk 0:03:54.1]} 21... Rxe1+ {[%clk 0:03:36.5]} 22. Rxe1
{[%clk 0:03:52.4]} 22... Qb6 {[%clk 0:03:28.1]} 23. b3 {[%clk 0:03:49.8]} 23...
Re8 {[%clk 0:03:25.1]} 24. Rxe8+ {[%clk 0:03:46.3]} 24... Nxe8 {[%clk
0:03:24.3]} 25. Ne2 {[%clk 0:03:45]} 25... Nd6 {[%clk 0:03:19.9]} 26. Nf4 {[%clk
0:03:42.6]} 26... Nf5 {[%clk 0:03:16.4]} 27. Nxd5 {[%clk 0:03:40.2]} 27... Qxd4+
{[%clk 0:03:14.3]} 28. Qxd4 {[%clk 0:03:39.3]} 28... Nxd4 {[%clk 0:03:13.8]} 29.
Kf2 {[%clk 0:03:34.4]} 29... Kf7 {[%clk 0:03:10.7]} 30. Ke3 {[%clk 0:03:32.3]}
30... Nc2+ {[%clk 0:03:02.3]} 31. Ke4 {[%clk 0:03:30.6]} 31... Ke6 {[%clk
0:02:54.8]} 32. Nf4+ {[%clk 0:03:24.5]} 32... Kd6 {[%clk 0:02:53.8]} 33. Nd3
{[%clk 0:03:24.1]} 33... b5 {[%clk 0:02:44.9]} 34. g3 {[%clk 0:03:18.3]} 34...
a5 {[%clk 0:02:42.2]} 35. h3 {[%clk 0:03:11.9]} 35... b4 {[%clk 0:02:41.2]} 36.
Nb2 {[%clk 0:03:03.6]} 36... Kc5 {[%clk 0:02:31.2]} 37. Nc4 {[%clk 0:03:02]}
37... a4 {[%clk 0:02:28.1]} 38. f4 {[%clk 0:02:56.4]} 38... axb3 {[%clk
0:02:26.6]} 39. axb3 {[%clk 0:02:56.3]} 39... Na1 {[%clk 0:02:25.6]} 40. Nd2
{[%clk 0:02:52.2]} 40... Nc2 {[%clk 0:02:24.2]} 41. g4 {[%clk 0:02:45.2]} 41...
Ne1 {[%clk 0:02:22.6]} 42. h4 {[%clk 0:02:36.1]} 42... Ng2 {[%clk 0:02:20.6]}
43. Nf3 {[%clk 0:02:30.1]} 43... h6 {[%clk 0:02:12.7]} 44. f5 {[%clk 0:02:21]}
44... h5 {[%clk 0:02:04.9]} 45. gxh5 {[%clk 0:02:15.5]} 45... gxh5 {[%clk
0:02:02.1]} 46. Nd4 {[%clk 0:01:55]} 46... Nxh4 {[%clk 0:01:58.6]} 47. Ne6+
{[%clk 0:01:54.6]} 47... Kd6 {[%clk 0:01:56.7]} 48. Nxg7 {[%clk 0:01:54.1]}
48... Ng2 {[%clk 0:01:51.5]} 49. Nxh5 {[%clk 0:01:52.8]} 49... Ne1 {[%clk
0:01:47.7]} 50. Nf4 {[%clk 0:01:45.6]} 50... Nc2 {[%clk 0:01:45.4]} 51. Nd5
{[%clk 0:01:42.4]} 51... Na1 {[%clk 0:01:42.5]} 52. Nxb4 {[%clk 0:01:40.5]}
52... Nxb3 {[%clk 0:01:41.9]} 53. Nd3 {[%clk 0:01:39]} 53... Ke7 {[%clk
0:01:40]} 54. f6+ {[%clk 0:01:36.1]} 1/2-1/2

[Event "Live Chess"]
[Site "Chess.com"]
[Date "2024.06.01"]
[Round "-"]
[White "Colm_Buckley"]
[Black "TheRedDrag"]
[Result "0-1"]
[WhiteElo "1808"]
[BlackElo "2179"]
[TimeControl "300"]
[EndTime "9:45:42 PDT"]
[Termination "TheRedDrag won on time"]

1. d4 {[%clk 0:04:57]} 1... Nf6 {[%clk 0:04:58.8]} 2. c4 {[%clk 0:04:56.4]} 2...
g6 {[%clk 0:04:58]} 3. Nc3 {[%clk 0:04:55.4]} 3... Bg7 {[%clk 0:04:57.5]} 4. e4
{[%clk 0:04:54.6]} 4... d6 {[%clk 0:04:56.5]} 5. Be2 {[%clk 0:04:53.7]} 5... O-O
{[%clk 0:04:56.1]} 6. Nf3 {[%clk 0:04:52.8]} 6... Nc6 {[%clk 0:04:55]} 7. O-O
{[%clk 0:04:51.3]} 7... e5 {[%clk 0:04:54.1]} 8. dxe5 {[%clk 0:04:50]} 8... dxe5
{[%clk 0:04:53]} 9. h3 {[%clk 0:04:42.9]} 9... Be6 {[%clk 0:04:49.8]} 10. Be3
{[%clk 0:04:38.8]} 10... Nd7 {[%clk 0:04:44.1]} 11. Nd5 {[%clk 0:04:28.2]} 11...
f5 {[%clk 0:04:40.9]} 12. exf5 {[%clk 0:04:18.1]} 12... Bxf5 {[%clk 0:04:34]}
13. Bg5 {[%clk 0:04:12.5]} 13... Nf6 {[%clk 0:04:27.8]} 14. Nxf6+ {[%clk
0:04:05.4]} 14... Bxf6 {[%clk 0:04:25.9]} 15. Bxf6 {[%clk 0:04:01.2]} 15... Qxf6
{[%clk 0:04:24.6]} 16. c5 {[%clk 0:03:50.9]} 16... e4 {[%clk 0:04:18.3]} 17.
Bc4+ {[%clk 0:03:39.1]} 17... Kh8 {[%clk 0:04:16.8]} 18. Nh2 {[%clk 0:03:29.3]}
18... Ne5 {[%clk 0:04:14.5]} 19. Be2 {[%clk 0:03:08.2]} 19... Rad8 {[%clk
0:04:11.3]} 20. Qb3 {[%clk 0:03:06.8]} 20... Qg5 {[%clk 0:03:59.2]} 21. Kh1
{[%clk 0:02:49]} 21... Rfe8 {[%clk 0:03:47.1]} 22. Qxb7 {[%clk 0:02:42.9]} 22...
Rd2 {[%clk 0:03:35.2]} 23. Rae1 {[%clk 0:02:28.6]} 23... Qe7 {[%clk 0:02:56]}
24. Qb4 {[%clk 0:02:19]} 24... Red8 {[%clk 0:02:50]} 25. Ng4 {[%clk 0:02:11.8]}
25... Bxg4 {[%clk 0:02:31.1]} 26. Bxg4 {[%clk 0:02:06.9]} 26... Nxg4 {[%clk
0:02:30]} 27. hxg4 {[%clk 0:02:04.2]} 27... Qh4+ {[%clk 0:02:21.3]} 28. Kg1
{[%clk 0:02:02.7]} 28... Qxg4 {[%clk 0:02:15.8]} 29. Rxe4 {[%clk 0:01:58]} 29...
Qf5 {[%clk 0:02:12.7]} 30. Qc3+ {[%clk 0:01:50.2]} 30... Kg8 {[%clk 0:02:10.1]}
31. Qc4+ {[%clk 0:01:44.8]} 31... Kg7 {[%clk 0:02:07.6]} 32. Rf4 {[%clk
0:01:38.4]} 32... Qd5 {[%clk 0:02:05.5]} 33. Qc3+ {[%clk 0:01:34.4]} 33... Kg8
{[%clk 0:02:04.3]} 34. a3 {[%clk 0:01:23.6]} 34... Rd3 {[%clk 0:01:55.7]} 35.
Qc4 {[%clk 0:01:20.5]} 35... Qxc4 {[%clk 0:01:54.1]} 36. Rxc4 {[%clk 0:01:18.8]}
36... Rb3 {[%clk 0:01:53.6]} 37. Rc2 {[%clk 0:01:13.6]} 37... Kf7 {[%clk
0:01:47.4]} 38. Re1 {[%clk 0:01:09.1]} 38... Rd5 {[%clk 0:01:45.1]} 39. Re3
{[%clk 0:01:01.2]} 39... Rb5 {[%clk 0:01:41.6]} 40. b4 {[%clk 0:00:56.1]} 40...
a5 {[%clk 0:01:40.8]} 41. Rc4 {[%clk 0:00:50.3]} 41... axb4 {[%clk 0:01:35.7]}
42. axb4 {[%clk 0:00:47.3]} 42... Kf6 {[%clk 0:01:34.1]} 43. Rf4+ {[%clk
0:00:41.4]} 43... Rf5 {[%clk 0:01:29.8]} 44. Rfe4 {[%clk 0:00:32]} 44... h5
{[%clk 0:01:23.2]} 45. g3 {[%clk 0:00:29.8]} 45... Rb8 {[%clk 0:01:18.9]} 46.
Re6+ {[%clk 0:00:28.2]} 46... Kg7 {[%clk 0:01:16.4]} 47. Re7+ {[%clk 0:00:26.8]}
47... Rf7 {[%clk 0:01:16]} 48. Rxf7+ {[%clk 0:00:22.2]} 48... Kxf7 {[%clk
0:01:15.2]} 49. Re4 {[%clk 0:00:21.6]} 49... Kf6 {[%clk 0:01:12.8]} 50. Rd4
{[%clk 0:00:19.9]} 50... Ke5 {[%clk 0:01:10.2]} 51. Rd7 {[%clk 0:00:18.8]} 51...
Rxb4 {[%clk 0:01:09.4]} 52. Rxc7 {[%clk 0:00:17.9]} 52... Kd5 {[%clk 0:01:07.9]}
53. c6 {[%clk 0:00:16.8]} 53... Rc4 {[%clk 0:01:07.3]} 54. Rg7 {[%clk
0:00:16.1]} 54... Rxc6 {[%clk 0:01:06]} 55. Kg2 {[%clk 0:00:15.2]} 55... Ke5
{[%clk 0:01:04.9]} 56. Re7+ {[%clk 0:00:14.1]} 56... Kf6 {[%clk 0:01:04.1]} 57.
Re3 {[%clk 0:00:13]} 57... Rd6 {[%clk 0:01:01.5]} 58. Rf3+ {[%clk 0:00:12]}
58... Kg5 {[%clk 0:01:00.4]} 59. Re3 {[%clk 0:00:11.1]} 59... Rf6 {[%clk
0:00:58.9]} 60. f4+ {[%clk 0:00:09.7]} 60... Kh6 {[%clk 0:00:58.5]} 61. Re5
{[%clk 0:00:08.4]} 61... h4 {[%clk 0:00:57.6]} 62. gxh4 {[%clk 0:00:07]} 62...
Rxf4 {[%clk 0:00:57.3]} 63. Kg3 {[%clk 0:00:06.2]} 63... Rf6 {[%clk 0:00:56.6]}
64. Rg5 {[%clk 0:00:04.8]} 64... Rc6 {[%clk 0:00:55.4]} 65. Rg4 {[%clk 0:00:04]}
65... Rc3+ {[%clk 0:00:54.6]} 66. Kg2 {[%clk 0:00:02.5]} 66... Rc2+ {[%clk
0:00:54.5]} 67. Kg3 {[%clk 0:00:01.6]} 67... Rc3+ {[%clk 0:00:53.3]} 68. Kg2
{[%clk 0:00:00.7]} 68... Kh5 {[%clk 0:00:52.8]} 0-1